[Event "Early-Titled-Tuesday-Blitz-March-05-2024"]
[Site "Chess.com"]
[Date "2024.03.05"]
[Round "1"]
[White "A-Fier"]
[Black "Brahianzevich"]
[Result "1-0"]
[WhiteElo "2939"]
[BlackElo "2493"]
[TimeControl "180+1"]
[EndTime "8:06:01 PST"]
[Termination "A-Fier won by resignation"]

1. d4 {[%clk 0:03:00.9]} 1... d5 {[%clk 0:02:55.3]} 2. Bg5 {[%clk 0:03:00.9]}
2... h6 {[%clk 0:02:54.5]} 3. Bh4 {[%clk 0:03:01]} 3... c6 {[%clk 0:02:54.8]} 4.
e3 {[%clk 0:03:01.1]} 4... Qb6 {[%clk 0:02:54.1]} 5. Qc1 {[%clk 0:03:01.5]} 5...
e5 {[%clk 0:02:53.9]} 6. Nf3 {[%clk 0:03:02.1]} 6... e4 {[%clk 0:02:46.2]} 7.
Nfd2 {[%clk 0:03:02.6]} 7... Ne7 {[%clk 0:02:30.5]} 8. c4 {[%clk 0:03:02]} 8...
Be6 {[%clk 0:02:26.9]} 9. Nc3 {[%clk 0:03:01]} 9... Nf5 {[%clk 0:02:23.2]} 10.
Bg3 {[%clk 0:03:01.2]} 10... Nd7 {[%clk 0:02:23.1]} 11. Be2 {[%clk 0:02:57.4]}
11... h5 {[%clk 0:02:23]} 12. Bf4 {[%clk 0:02:55.7]} 12... Be7 {[%clk
0:02:19.8]} 13. Ndxe4 {[%clk 0:02:41.7]} 13... dxe4 {[%clk 0:02:18.3]} 14. d5
{[%clk 0:02:42.2]} 14... cxd5 {[%clk 0:02:13.9]} 15. cxd5 {[%clk 0:02:42.4]}
15... g5 {[%clk 0:02:11.2]} 16. dxe6 {[%clk 0:02:42]} 16... Qxe6 {[%clk
0:02:12.1]} 17. Nb5 {[%clk 0:02:32.3]} 17... O-O {[%clk 0:01:11]} 18. Nc7 {[%clk
0:02:31.6]} 18... Rfc8 {[%clk 0:00:37.6]} 19. Nxe6 {[%clk 0:02:29.2]} 19...
Rxc1+ {[%clk 0:00:37.8]} 20. Rxc1 {[%clk 0:02:29.9]} 20... fxe6 {[%clk
0:00:38.7]} 21. Bc7 {[%clk 0:02:28.6]} 21... Bb4+ {[%clk 0:00:37.1]} 22. Kd1
{[%clk 0:02:24]} 22... Nf6 {[%clk 0:00:37]} 23. Kc2 {[%clk 0:02:15.8]} 23... Nd5
{[%clk 0:00:32]} 24. Kb1 {[%clk 0:02:13]} 24... h4 {[%clk 0:00:30.4]} 25. Be5
{[%clk 0:02:12]} 25... Be7 {[%clk 0:00:19.3]} 26. Bc4 {[%clk 0:02:11.1]} 26...
Kf7 {[%clk 0:00:16.6]} 27. Rhd1 {[%clk 0:02:10.6]} 27... Rd8 {[%clk 0:00:15]}
28. Bb3 {[%clk 0:02:10.2]} 28... Rd7 {[%clk 0:00:13.6]} 29. h3 {[%clk
0:02:09.8]} 29... Bf6 {[%clk 0:00:13.8]} 30. Bxf6 {[%clk 0:02:09.3]} 30... Kxf6
{[%clk 0:00:14.7]} 31. Rc4 {[%clk 0:02:04.5]} 31... Ke5 {[%clk 0:00:14.4]} 32.
Bc2 {[%clk 0:02:04.7]} 32... Nd6 {[%clk 0:00:14.6]} 33. Rcd4 {[%clk 0:02:04.7]}
33... b6 {[%clk 0:00:12.8]} 34. a3 {[%clk 0:02:01.1]} 34... Rc7 {[%clk
0:00:13.2]} 35. Bb3 {[%clk 0:01:59.7]} 35... Rc5 {[%clk 0:00:12.8]} 36. Ba2
{[%clk 0:01:58.2]} 36... Nf5 {[%clk 0:00:12.9]} 37. R4d2 {[%clk 0:01:57.3]}
37... a5 {[%clk 0:00:12.4]} 38. Bb3 {[%clk 0:01:55]} 38... Nd6 {[%clk
0:00:12.7]} 39. Rc1 {[%clk 0:01:52]} 39... Rb5 {[%clk 0:00:13.3]} 40. Ba4 {[%clk
0:01:50.8]} 40... Rc5 {[%clk 0:00:11]} 41. Rxc5 {[%clk 0:01:50.5]} 41... bxc5
{[%clk 0:00:11.9]} 42. Rc2 {[%clk 0:01:46.8]} 42... c4 {[%clk 0:00:11]} 43. b3
{[%clk 0:01:47.3]} 43... c3 {[%clk 0:00:09.9]} 44. Bc6 {[%clk 0:01:47.6]} 44...
Nf5 {[%clk 0:00:09.1]} 45. Bxd5 {[%clk 0:01:48]} 45... exd5 {[%clk 0:00:10]} 46.
Rxc3 {[%clk 0:01:48.6]} 46... d4 {[%clk 0:00:10.9]} 47. Rc5+ {[%clk 0:01:48.4]}
1-0

[Event "Early-Titled-Tuesday-Blitz-March-05-2024"]
[Site "Chess.com"]
[Date "2024.03.05"]
[Round "1"]
[White "dosto07"]
[Black "MikeSailer"]
[Result "1-0"]
[WhiteElo "2559"]
[BlackElo "2178"]
[TimeControl "180+1"]
[EndTime "8:06:01 PST"]
[Termination "dosto07 won by checkmate"]

1. e4 {[%clk 0:03:00.9]} 1... d5 {[%clk 0:02:52.8]} 2. exd5 {[%clk 0:03:00.1]}
2... Qxd5 {[%clk 0:02:51.3]} 3. Nc3 {[%clk 0:02:59.7]} 3... Qd6 {[%clk
0:02:50.8]} 4. d4 {[%clk 0:02:59.7]} 4... c6 {[%clk 0:02:36.2]} 5. Nf3 {[%clk
0:02:58.5]} 5... Bg4 {[%clk 0:02:31.3]} 6. Be3 {[%clk 0:02:54]} 6... e6 {[%clk
0:02:27.5]} 7. h3 {[%clk 0:02:48.5]} 7... Bh5 {[%clk 0:02:02.4]} 8. g4 {[%clk
0:02:47.6]} 8... Bg6 {[%clk 0:02:02.1]} 9. Ne5 {[%clk 0:02:47.7]} 9... Nf6
{[%clk 0:01:59.4]} 10. Bg2 {[%clk 0:02:45.9]} 10... Nbd7 {[%clk 0:01:59.2]} 11.
Bf4 {[%clk 0:02:41]} 11... Nxe5 {[%clk 0:01:57.3]} 12. Bxe5 {[%clk 0:02:37.4]}
12... Qb4 {[%clk 0:01:57.3]} 13. Bxf6 {[%clk 0:02:08.2]} 13... gxf6 {[%clk
0:01:52.6]} 14. Rb1 {[%clk 0:02:00.8]} 14... O-O-O {[%clk 0:01:41.8]} 15. O-O
{[%clk 0:01:59.9]} 15... h5 {[%clk 0:01:40.2]} 16. Qf3 {[%clk 0:01:45]} 16...
hxg4 {[%clk 0:01:37.5]} 17. hxg4 {[%clk 0:01:44.7]} 17... Bd6 {[%clk 0:01:36.7]}
18. Rfc1 {[%clk 0:01:39.1]} 18... Qxd4 {[%clk 0:01:24.5]} 19. Rd1 {[%clk
0:01:30.6]} 19... Bh2+ {[%clk 0:01:20.6]} 20. Kf1 {[%clk 0:01:27.4]} 20... Qc4+
{[%clk 0:01:10.1]} 21. Qe2 {[%clk 0:01:26.4]} 21... Qxe2+ {[%clk 0:01:07.3]} 22.
Kxe2 {[%clk 0:01:26.8]} 22... Bxc2 {[%clk 0:01:06.3]} 23. Rxd8+ {[%clk 0:01:26]}
23... Rxd8 {[%clk 0:01:06.6]} 24. Rh1 {[%clk 0:01:25.8]} 24... Bf4 {[%clk
0:01:06.1]} 25. Be4 {[%clk 0:01:19.9]} 25... Rd2+ {[%clk 0:00:47.4]} 26. Kf3
{[%clk 0:01:19.9]} 26... Bxe4+ {[%clk 0:00:47.4]} 27. Nxe4 {[%clk 0:01:20.1]}
27... Rxb2 {[%clk 0:00:39]} 28. Kxf4 {[%clk 0:01:20.3]} 28... Rxa2 {[%clk
0:00:37.3]} 29. Rh7 {[%clk 0:01:16.9]} 29... a5 {[%clk 0:00:32.7]} 30. Rxf7
{[%clk 0:01:16.7]} 30... e5+ {[%clk 0:00:32.4]} 31. Kf5 {[%clk 0:01:14.7]} 31...
a4 {[%clk 0:00:32.2]} 32. Nd6+ {[%clk 0:01:13.2]} 32... Kd8 {[%clk 0:00:32.4]}
33. Ke6 {[%clk 0:01:11.2]} 33... Rxf2 {[%clk 0:00:19.3]} 34. Rd7# {[%clk
0:01:10.8]} 1-0

[Event "Early-Titled-Tuesday-Blitz-March-05-2024"]
[Site "Chess.com"]
[Date "2024.03.05"]
[Round "1"]
[White "Indianlad"]
[Black "Herzog2012"]
[Result "1-0"]
[WhiteElo "3012"]
[BlackElo "2512"]
[TimeControl "180+1"]
[EndTime "8:06:03 PST"]
[Termination "Indianlad won on time"]

1. f4 {[%clk 0:03:00.4]} 1... d5 {[%clk 0:02:59.2]} 2. Nf3 {[%clk 0:03:00.3]}
2... Nf6 {[%clk 0:02:59.7]} 3. e3 {[%clk 0:03:00.3]} 3... g6 {[%clk 0:02:57.2]}
4. b3 {[%clk 0:03:00]} 4... Bg7 {[%clk 0:02:57.4]} 5. Bb2 {[%clk 0:03:00.6]}
5... O-O {[%clk 0:02:57.8]} 6. Be2 {[%clk 0:02:59.7]} 6... c5 {[%clk 0:02:54.9]}
7. O-O {[%clk 0:02:59.9]} 7... Nc6 {[%clk 0:02:55.5]} 8. Qe1 {[%clk 0:02:59.6]}
8... d4 {[%clk 0:02:40.2]} 9. Na3 {[%clk 0:02:59.1]} 9... Bf5 {[%clk 0:02:37]}
10. Kh1 {[%clk 0:02:54.7]} 10... d3 {[%clk 0:02:29.4]} 11. cxd3 {[%clk
0:02:54.4]} 11... Bxd3 {[%clk 0:02:30.3]} 12. Nc4 {[%clk 0:02:54.3]} 12... Ne4
{[%clk 0:02:24.6]} 13. Bxg7 {[%clk 0:02:53.5]} 13... Kxg7 {[%clk 0:02:25.5]} 14.
Bxd3 {[%clk 0:02:31.2]} 14... Qxd3 {[%clk 0:02:25.1]} 15. Nb2 {[%clk 0:02:31.8]}
15... Qc2 {[%clk 0:01:37.8]} 16. Qc1 {[%clk 0:02:31.2]} 16... Qxc1 {[%clk
0:01:37.4]} 17. Raxc1 {[%clk 0:02:31.1]} 17... b6 {[%clk 0:01:32.8]} 18. d3
{[%clk 0:02:14.2]} 18... Nd6 {[%clk 0:01:22.6]} 19. a3 {[%clk 0:02:04.4]} 19...
Rac8 {[%clk 0:01:15.5]} 20. Kg1 {[%clk 0:02:01]} 20... Na5 {[%clk 0:01:13.8]}
21. b4 {[%clk 0:01:59.5]} 21... cxb4 {[%clk 0:01:12.9]} 22. axb4 {[%clk
0:01:59.7]} 22... Nb3 {[%clk 0:01:13.4]} 23. Rb1 {[%clk 0:01:56.1]} 23... Rc2
{[%clk 0:01:01.9]} 24. Na4 {[%clk 0:01:52.6]} 24... Nd2 {[%clk 0:00:57.2]} 25.
Nxd2 {[%clk 0:01:52.8]} 25... Rxd2 {[%clk 0:00:58.1]} 26. Rfd1 {[%clk
0:01:53.4]} 26... Rxd1+ {[%clk 0:00:56.9]} 27. Rxd1 {[%clk 0:01:53.6]} 27... Rc8
{[%clk 0:00:54.5]} 28. Rd2 {[%clk 0:01:49.7]} 28... a5 {[%clk 0:00:40.4]} 29.
Nxb6 {[%clk 0:01:41.6]} 29... Rc1+ {[%clk 0:00:38.3]} 30. Kf2 {[%clk 0:01:42.1]}
30... axb4 {[%clk 0:00:36]} 31. Rb2 {[%clk 0:01:42.7]} 31... Nf5 {[%clk
0:00:12.9]} 32. Nd5 {[%clk 0:01:33.8]} 32... b3 {[%clk 0:00:10.5]} 33. g4 {[%clk
0:01:33.5]} 1-0

[Event "Early-Titled-Tuesday-Blitz-March-05-2024"]
[Site "Chess.com"]
[Date "2024.03.05"]
[Round "1"]
[White "Sajith_Peiris"]
[Black "Rokis13"]
[Result "0-1"]
[WhiteElo "2245"]
[BlackElo "2583"]
[TimeControl "180+1"]
[EndTime "8:06:04 PST"]
[Termination "Rokis13 won on time"]

1. e4 {[%clk 0:02:57.7]} 1... e5 {[%clk 0:02:59.7]} 2. Nf3 {[%clk 0:02:52.9]}
2... Nc6 {[%clk 0:03:00.1]} 3. Bb5 {[%clk 0:02:50.6]} 3... Nge7 {[%clk
0:03:00.3]} 4. O-O {[%clk 0:02:48.2]} 4... g6 {[%clk 0:02:58.2]} 5. c3 {[%clk
0:02:39.1]} 5... a6 {[%clk 0:02:57.2]} 6. Ba4 {[%clk 0:02:36.5]} 6... Bg7 {[%clk
0:02:57.9]} 7. d4 {[%clk 0:02:34.9]} 7... exd4 {[%clk 0:02:58.8]} 8. cxd4 {[%clk
0:02:33.9]} 8... b5 {[%clk 0:02:59.5]} 9. Bc2 {[%clk 0:02:28.8]} 9... O-O {[%clk
0:02:59.5]} 10. Nc3 {[%clk 0:02:16.7]} 10... d5 {[%clk 0:02:58.1]} 11. exd5
{[%clk 0:01:55.6]} 11... Nxd5 {[%clk 0:02:57.9]} 12. Be4 {[%clk 0:01:53.8]}
12... Be6 {[%clk 0:02:53.1]} 13. Bg5 {[%clk 0:01:43]} 13... Qd7 {[%clk
0:02:53.2]} 14. Rc1 {[%clk 0:01:33.9]} 14... Rfe8 {[%clk 0:02:49.9]} 15. h3
{[%clk 0:01:18.5]} 15... Rac8 {[%clk 0:02:47.8]} 16. Bh4 {[%clk 0:01:03.7]}
16... h6 {[%clk 0:02:32.8]} 17. Nxd5 {[%clk 0:00:53.9]} 17... Bxd5 {[%clk
0:02:32.6]} 18. Bxd5 {[%clk 0:00:53.2]} 18... Qxd5 {[%clk 0:02:33.5]} 19. Rc5
{[%clk 0:00:50.6]} 19... Qd7 {[%clk 0:02:29.5]} 20. Bg3 {[%clk 0:00:33.5]} 20...
Nxd4 {[%clk 0:02:23.6]} 21. Nxd4 {[%clk 0:00:29.2]} 21... Qxd4 {[%clk
0:02:23.7]} 22. Qc2 {[%clk 0:00:26.3]} 22... Qxb2 {[%clk 0:02:20.9]} 23. Qxb2
{[%clk 0:00:25.5]} 23... Bxb2 {[%clk 0:02:20.9]} 24. Rc6 {[%clk 0:00:23.1]}
24... Bd4 {[%clk 0:02:15.7]} 25. Rxa6 {[%clk 0:00:20]} 25... c5 {[%clk
0:02:15.7]} 26. Rb6 {[%clk 0:00:16.1]} 26... b4 {[%clk 0:02:15.9]} 27. Rb5
{[%clk 0:00:14.4]} 27... Re2 {[%clk 0:02:14.9]} 28. Rc1 {[%clk 0:00:11.3]} 28...
Rxa2 {[%clk 0:02:12.6]} 29. Rxb4 {[%clk 0:00:10.2]} 29... cxb4 {[%clk
0:02:02.1]} 30. Rxc8+ {[%clk 0:00:09.5]} 30... Kg7 {[%clk 0:02:01.2]} 31. Rb8
{[%clk 0:00:08.9]} 31... Rb2 {[%clk 0:01:57]} 32. h4 {[%clk 0:00:06.7]} 32... b3
{[%clk 0:01:57.1]} 33. Rb4 {[%clk 0:00:05.4]} 33... Rb1+ {[%clk 0:01:53.9]} 34.
Kh2 {[%clk 0:00:05.2]} 34... Bf6 {[%clk 0:01:52.1]} 35. h5 {[%clk 0:00:04.2]}
35... b2 {[%clk 0:01:49.3]} 36. hxg6 {[%clk 0:00:02.7]} 36... Kxg6 {[%clk
0:01:49.1]} 37. Rb6 {[%clk 0:00:02.5]} 37... Re1 {[%clk 0:01:46]} 0-1

[Event "Early-Titled-Tuesday-Blitz-March-05-2024"]
[Site "Chess.com"]
[Date "2024.03.05"]
[Round "1"]
[White "Szachulec75"]
[Black "RandomNoob04"]
[Result "0-1"]
[WhiteElo "2212"]
[BlackElo "2573"]
[TimeControl "180+1"]
[EndTime "8:06:04 PST"]
[Termination "RandomNoob04 won by resignation"]

1. Nf3 {[%clk 0:02:58.9]} 1... g6 {[%clk 0:02:58.4]} 2. g3 {[%clk 0:02:56.9]}
2... Bg7 {[%clk 0:02:57.7]} 3. Bg2 {[%clk 0:02:57.8]} 3... c5 {[%clk 0:02:57.7]}
4. O-O {[%clk 0:02:52.9]} 4... Nc6 {[%clk 0:02:57.6]} 5. d3 {[%clk 0:02:52.9]}
5... e5 {[%clk 0:02:54.5]} 6. c4 {[%clk 0:02:51.5]} 6... Nge7 {[%clk 0:02:54.3]}
7. Nc3 {[%clk 0:02:50]} 7... O-O {[%clk 0:02:54.7]} 8. a3 {[%clk 0:02:50.2]}
8... d5 {[%clk 0:02:51.5]} 9. cxd5 {[%clk 0:02:48.7]} 9... Nxd5 {[%clk
0:02:52.4]} 10. Bd2 {[%clk 0:02:48.7]} 10... h6 {[%clk 0:02:45.3]} 11. Rc1
{[%clk 0:02:45.4]} 11... Be6 {[%clk 0:02:44.3]} 12. Ne4 {[%clk 0:02:34.2]} 12...
b6 {[%clk 0:02:41.5]} 13. Be1 {[%clk 0:02:22.7]} 13... Rc8 {[%clk 0:02:36.1]}
14. Ned2 {[%clk 0:02:17.4]} 14... Qe7 {[%clk 0:02:31]} 15. Qa4 {[%clk
0:02:13.4]} 15... Nd4 {[%clk 0:02:24.4]} 16. Nxd4 {[%clk 0:02:05.5]} 16... exd4
{[%clk 0:02:25.3]} 17. Nc4 {[%clk 0:01:52.8]} 17... Rfd8 {[%clk 0:02:19.2]} 18.
b4 {[%clk 0:01:47.9]} 18... Nc3 {[%clk 0:02:12.1]} 19. Bxc3 {[%clk 0:01:46.6]}
19... dxc3 {[%clk 0:02:13]} 20. Ne3 {[%clk 0:01:41.3]} 20... cxb4 {[%clk
0:02:07]} 21. axb4 {[%clk 0:01:37.3]} 21... h5 {[%clk 0:01:57.2]} 22. h3 {[%clk
0:01:26.7]} 22... Bh6 {[%clk 0:01:56.7]} 23. Qa3 {[%clk 0:01:19.2]} 23... Bxe3
{[%clk 0:01:46]} 24. fxe3 {[%clk 0:01:18.2]} 24... Qg5 {[%clk 0:01:39.1]} 25.
Kh2 {[%clk 0:01:12.2]} 25... Qxe3 {[%clk 0:01:37.3]} 26. Rxc3 {[%clk 0:01:11]}
26... Qxe2 {[%clk 0:01:30.3]} 27. Kg1 {[%clk 0:00:44.6]} 27... Qe5 {[%clk
0:01:20.3]} 28. Rxc8 {[%clk 0:00:34.5]} 28... Rxc8 {[%clk 0:01:21.2]} 29. Rf3
{[%clk 0:00:25.2]} 29... Rc2 {[%clk 0:01:08.4]} 30. Rf2 {[%clk 0:00:22.9]} 30...
Qe3 {[%clk 0:01:02.7]} 0-1

[Event "Early-Titled-Tuesday-Blitz-March-05-2024"]
[Site "Chess.com"]
[Date "2024.03.05"]
[Round "1"]
[White "BogdanDeac"]
[Black "WindWhistler11"]
[Result "1-0"]
[WhiteElo "2995"]
[BlackElo "2511"]
[TimeControl "180+1"]
[EndTime "8:06:13 PST"]
[Termination "BogdanDeac won on time"]

1. d4 {[%clk 0:03:00.9]} 1... Nf6 {[%clk 0:02:59.5]} 2. Nf3 {[%clk 0:03:01.2]}
2... e6 {[%clk 0:02:59.5]} 3. Bf4 {[%clk 0:03:01.1]} 3... a6 {[%clk 0:02:59.3]}
4. e3 {[%clk 0:03:00.3]} 4... Be7 {[%clk 0:02:53.5]} 5. Bd3 {[%clk 0:02:59.6]}
5... b5 {[%clk 0:02:53.1]} 6. e4 {[%clk 0:02:58.7]} 6... Bb7 {[%clk 0:02:53.1]}
7. Nbd2 {[%clk 0:02:57.8]} 7... d6 {[%clk 0:02:52.6]} 8. Qe2 {[%clk 0:02:55.6]}
8... Nbd7 {[%clk 0:02:52.2]} 9. O-O {[%clk 0:02:51.4]} 9... O-O {[%clk
0:02:48.8]} 10. a4 {[%clk 0:02:50.6]} 10... b4 {[%clk 0:02:43.7]} 11. a5 {[%clk
0:02:50.4]} 11... c5 {[%clk 0:02:38.7]} 12. c3 {[%clk 0:02:50.2]} 12... bxc3
{[%clk 0:02:20.5]} 13. bxc3 {[%clk 0:02:49.4]} 13... Qc7 {[%clk 0:02:12]} 14. h3
{[%clk 0:02:39.6]} 14... Rfe8 {[%clk 0:01:46.9]} 15. Bh2 {[%clk 0:02:38.3]}
15... e5 {[%clk 0:01:41.8]} 16. d5 {[%clk 0:02:31.9]} 16... g6 {[%clk
0:01:17.1]} 17. Rfb1 {[%clk 0:02:25.7]} 17... Nh5 {[%clk 0:01:10.1]} 18. Nc4
{[%clk 0:02:25.2]} 18... Bf8 {[%clk 0:01:00.4]} 19. Nb6 {[%clk 0:02:19.4]} 19...
Nf4 {[%clk 0:00:44.5]} 20. Bxf4 {[%clk 0:02:16.7]} 20... exf4 {[%clk 0:00:44.9]}
21. Nxa8 {[%clk 0:02:13.1]} 21... Bxa8 {[%clk 0:00:44.4]} 22. Qd2 {[%clk
0:02:03]} 22... Bh6 {[%clk 0:00:39.6]} 23. Ra4 {[%clk 0:01:55.7]} 23... c4
{[%clk 0:00:26]} 24. Rxc4 {[%clk 0:01:32.1]} 24... Qxa5 {[%clk 0:00:26.3]} 25.
Rcb4 {[%clk 0:01:32.4]} 25... Qc7 {[%clk 0:00:11.4]} 26. Bxa6 {[%clk 0:01:29.7]}
26... Nc5 {[%clk 0:00:09.4]} 27. Bd3 {[%clk 0:01:29.5]} 27... Bg7 {[%clk
0:00:07.3]} 28. Qc2 {[%clk 0:01:24.6]} 28... f5 {[%clk 0:00:06.7]} 29. exf5
{[%clk 0:01:24.1]} 29... Bxd5 {[%clk 0:00:07.3]} 30. Bc4 {[%clk 0:01:20.3]}
30... Qf7 {[%clk 0:00:01.2]} 31. fxg6 {[%clk 0:01:17.1]} 31... hxg6 {[%clk
0:00:01.3]} 32. Bxd5 {[%clk 0:01:17.3]} 32... Qxd5 {[%clk 0:00:02.2]} 33. Qxg6
{[%clk 0:01:17.4]} 33... Nd3 {[%clk 0:00:02.2]} 34. Qxe8+ {[%clk 0:01:17.1]} 1-0

[Event "Early-Titled-Tuesday-Blitz-March-05-2024"]
[Site "Chess.com"]
[Date "2024.03.05"]
[Round "1"]
[White "GMG"]
[Black "ljuks68"]
[Result "1-0"]
[WhiteElo "2707"]
[BlackElo "2408"]
[TimeControl "180+1"]
[EndTime "8:06:16 PST"]
[Termination "GMG won by resignation"]

1. d4 {[%clk 0:03:00.9]} 1... d5 {[%clk 0:02:57.8]} 2. c4 {[%clk 0:03:01]} 2...
c6 {[%clk 0:02:58.2]} 3. Nf3 {[%clk 0:03:01.2]} 3... Nf6 {[%clk 0:02:58.6]} 4.
Nc3 {[%clk 0:03:01.8]} 4... dxc4 {[%clk 0:02:59]} 5. a4 {[%clk 0:03:01.5]} 5...
Bf5 {[%clk 0:02:59.2]} 6. Nh4 {[%clk 0:02:58.4]} 6... Bc8 {[%clk 0:02:52.6]} 7.
e3 {[%clk 0:02:55]} 7... e5 {[%clk 0:02:49.8]} 8. Bxc4 {[%clk 0:02:50.4]} 8...
exd4 {[%clk 0:02:49.4]} 9. exd4 {[%clk 0:02:49.5]} 9... Be7 {[%clk 0:02:50]} 10.
Nf3 {[%clk 0:02:43.1]} 10... O-O {[%clk 0:02:49.6]} 11. Ne5 {[%clk 0:02:43.3]}
11... Nbd7 {[%clk 0:02:38.6]} 12. O-O {[%clk 0:02:37.5]} 12... Nb6 {[%clk
0:02:34.7]} 13. Bb3 {[%clk 0:02:35.1]} 13... Nbd5 {[%clk 0:02:33.4]} 14. Re1
{[%clk 0:02:32.2]} 14... Be6 {[%clk 0:02:32.7]} 15. Bc2 {[%clk 0:02:18.6]} 15...
Nb4 {[%clk 0:02:22.7]} 16. Bb1 {[%clk 0:02:16.9]} 16... a5 {[%clk 0:02:15.5]}
17. Be3 {[%clk 0:02:13.4]} 17... Nfd5 {[%clk 0:02:11]} 18. Qh5 {[%clk
0:02:10.2]} 18... g6 {[%clk 0:02:10.9]} 19. Nxg6 {[%clk 0:01:56.2]} 19... fxg6
{[%clk 0:01:52.9]} 20. Bxg6 {[%clk 0:01:57.1]} 20... Nf6 {[%clk 0:01:43.6]} 21.
Bxh7+ {[%clk 0:01:56.5]} 21... Nxh7 {[%clk 0:01:40.5]} 22. Qg6+ {[%clk
0:01:56.6]} 22... Kh8 {[%clk 0:01:39.8]} 23. Qxe6 {[%clk 0:01:53.6]} 23... Nc2
{[%clk 0:01:35.1]} 24. Bh6 {[%clk 0:01:47.6]} 24... Nxe1 {[%clk 0:01:24]} 25.
Bxf8 {[%clk 0:01:42.4]} 25... Nf3+ {[%clk 0:01:19]} 26. gxf3 {[%clk 0:01:40.4]}
26... Bxf8 {[%clk 0:01:01.2]} 27. Re1 {[%clk 0:01:35.9]} 27... Qxd4 {[%clk
0:00:52]} 28. Re4 {[%clk 0:01:35.8]} 28... Qd6 {[%clk 0:00:42.7]} 29. Qh3 {[%clk
0:01:32.1]} 29... Bg7 {[%clk 0:00:25.7]} 30. Rh4 {[%clk 0:01:29.7]} 30... Qg6+
{[%clk 0:00:25.6]} 31. Rg4 {[%clk 0:01:29.8]} 31... Qc2 {[%clk 0:00:22.9]} 32.
Ne4 {[%clk 0:01:28.2]} 32... Rf8 {[%clk 0:00:17.9]} 33. Rh4 {[%clk 0:01:27]}
33... Qd1+ {[%clk 0:00:07.2]} 34. Kg2 {[%clk 0:01:27.3]} 34... Bh6 {[%clk
0:00:03.7]} 35. Rxh6 {[%clk 0:01:24.8]} 35... Rg8+ {[%clk 0:00:04.2]} 36. Ng3
{[%clk 0:01:23.6]} 36... Rg7 {[%clk 0:00:04.2]} 37. Qc8+ {[%clk 0:01:20.1]} 1-0

[Event "Early-Titled-Tuesday-Blitz-March-05-2024"]
[Site "Chess.com"]
[Date "2024.03.05"]
[Round "1"]
[White "JohnWhite1952"]
[Black "OneTrickPony_82"]
[Result "0-1"]
[WhiteElo "1973"]
[BlackElo "2531"]
[TimeControl "180+1"]
[EndTime "8:06:17 PST"]
[Termination "OneTrickPony_82 won by checkmate"]

1. e4 {[%clk 0:02:56]} 1... e5 {[%clk 0:02:59.6]} 2. Nf3 {[%clk 0:02:55.2]} 2...
Nc6 {[%clk 0:02:59.6]} 3. Bb5 {[%clk 0:02:54]} 3... a6 {[%clk 0:02:59.7]} 4. Ba4
{[%clk 0:02:53.1]} 4... Nf6 {[%clk 0:02:59.8]} 5. O-O {[%clk 0:02:51.9]} 5...
Be7 {[%clk 0:02:56.8]} 6. Re1 {[%clk 0:02:50.9]} 6... b5 {[%clk 0:02:56.7]} 7.
Bb3 {[%clk 0:02:50]} 7... O-O {[%clk 0:02:57.3]} 8. c3 {[%clk 0:02:46.2]} 8...
d5 {[%clk 0:02:57.1]} 9. exd5 {[%clk 0:02:45.6]} 9... Nxd5 {[%clk 0:02:57.1]}
10. Nxe5 {[%clk 0:02:44.7]} 10... Nxe5 {[%clk 0:02:57.7]} 11. Rxe5 {[%clk
0:02:44.4]} 11... Bb7 {[%clk 0:02:58.3]} 12. d4 {[%clk 0:02:37.5]} 12... Bf6
{[%clk 0:02:58]} 13. Re1 {[%clk 0:02:34.6]} 13... Re8 {[%clk 0:02:58]} 14. Nd2
{[%clk 0:02:22.5]} 14... Nf4 {[%clk 0:02:56.9]} 15. Rxe8+ {[%clk 0:01:58.1]}
15... Qxe8 {[%clk 0:02:56.9]} 16. Nf3 {[%clk 0:01:55.3]} 16... Bxf3 {[%clk
0:02:40.4]} 17. gxf3 {[%clk 0:01:51.9]} 17... Bg5 {[%clk 0:02:31.2]} 18. Bxf4
{[%clk 0:01:46.1]} 18... Bxf4 {[%clk 0:02:30.8]} 19. Qe1 {[%clk 0:01:44.2]}
19... Qd8 {[%clk 0:02:26.5]} 20. Qe4 {[%clk 0:01:40.8]} 20... Qg5+ {[%clk
0:02:25.5]} 21. Kf1 {[%clk 0:01:33.1]} 21... Rf8 {[%clk 0:02:25.1]} 22. Re1
{[%clk 0:01:26.2]} 22... Bxh2 {[%clk 0:02:17.4]} 23. Bc2 {[%clk 0:01:19.1]}
23... g6 {[%clk 0:02:10.7]} 24. Qg4 {[%clk 0:01:11.2]} 24... Qd2 {[%clk
0:01:54.8]} 25. Qe4 {[%clk 0:01:04.5]} 25... Bd6 {[%clk 0:01:45.4]} 26. Rd1
{[%clk 0:00:47.7]} 26... Qg5 {[%clk 0:01:42.3]} 27. Qg4 {[%clk 0:00:45.7]} 27...
Qf6 {[%clk 0:01:35]} 28. Qe4 {[%clk 0:00:41.3]} 28... h5 {[%clk 0:01:32.4]} 29.
Re1 {[%clk 0:00:35.6]} 29... Qg5 {[%clk 0:01:31.1]} 30. Ke2 {[%clk 0:00:30.5]}
30... c5 {[%clk 0:01:07.2]} 31. Kd1 {[%clk 0:00:22.8]} 31... cxd4 {[%clk
0:01:03.8]} 32. cxd4 {[%clk 0:00:21.7]} 32... Bb4 {[%clk 0:01:00.8]} 33. Rf1
{[%clk 0:00:19.4]} 33... Qd2# {[%clk 0:01:00.4]} 0-1